Workbook

Sheet Notes
I2: Separate Construction Period
B3: At DSCR > 1, 50% is swept by bank | I3: Move Transaction Costs to S&U
B5: If production of single customer is 60% | I5: Problems with inflation in first year
I6: Huur Technische ruimte
B7: Put in 1/2 of equity in preference shares at 12% | I7: Working Capital
I8: Fix Depreciation
B9: Look at maco
B11: Preference Interest Senior to sweep
B13: Target Up-front cash
B17: 2017-08-29
B19: construction financing, bonds 6% p.a. as of 1 st of September 2016 | H19: 1050 | I19: financing
B21: senior debt - quaterly repayments
B23: capex, say 1.6 MEUR, how to finance? | F23: fix the debt, then cash sweep
B25: taxs
B27: construction started 1 Sept 2016, ends 1 November
B29: cash sweep bank (above 1.0 , 50% sweep)

Sheet Model
C1: DATA | D1: =D178 -> 0.07727027237 | E1: =D10 -> 2016-08-31 | F1: 2017-10-30 | G1: =EOMONTH(F1,12) -> 2018-10-31 | H1: =EDATE(G1,12) -> 2019-10-31 | I1: 2020-10-31 | J1: 2021-10-31 | K1: 2022-10-31 | L1: 2023-10-31 | M1: 2024-10-31 | N1: 2025-10-31 | O1: 2026-10-31 | P1: 2027-10-31 | Q1: 2028-10-31 | R1: 2029-10-31 | S1: 2030-10-31 | T1: 2031-10-31 | U1: 2032-10-31 | V1: 2033-10-31 | W1: 2034-10-31 | X1: 2035-10-31 | Y1: 2036-10-31 | Z1: 2037-10-31
F2: 1 | G2: =IF(G3<$G$7,F2,0.0000000001) -> 1 | H2: =IF(H3<$G$7,G2,0.0000000001) -> 1 | I2: 1 | J2: 1 | K2: 1 | L2: 1 | M2: 1 | N2: 1 | O2: 1 | P2: 1 | Q2: 1 | R2: 1 | S2: 1 | T2: 1 | U2: 1e-10 | V2: 1e-10 | W2: 1e-10 | X2: 1e-10 | Y2: 1e-10 | Z2: 1e-10
F3: 0 | G3: 1 | H3: =G3+1 -> 2 | I3: =H3+1 -> 3 | J3: 4 | K3: 5 | L3: 6 | M3: 7 | N3: 8 | O3: 9 | P3: 10 | Q3: 11 | R3: 12 | S3: 13 | T3: 14 | U3: 15 | V3: 16 | W3: 17 | X3: 18 | Y3: 19 | Z3: 20
A4: Summary
D6: Verkoop Koude de Burg | G6: ='Kosten & Scenario''s'!$K$9 -> 72000 | K6: Equity IRR
B7: Crowd Funding | F7: Project Life | G7: 15 | Z7: 7
C8: Total Cash Funding | D8: 1050000 | R8: Scenarios | T8: Scenario 1 | U8: Scenario 2 | V8: Scenario 3
C9: Annual Interest Rate | D9: 0.06 | F9: Pre-tax Project IRR | H9: =Model!D178 -> 0.07727027237 | R9: Koude levering De Burg | T9: 51840 | U9: 57600 | V9: 72000
C10: Funding Date | D10: 2016-08-31 | F10: After-tax Project IRR | H10: =Model!D191 -> 0.05942932069 | R10: MW | T10: ='Kosten & Scenario''s'!$K$11 -> 5300 | U10: ='Kosten & Scenario''s'!$K$11 -> 5300 | V10: ='Kosten & Scenario''s'!$K$11 -> 5300
R11: Verkoopprijs WKO De Burg | T11: 1250000 | U11: 1350000 | V11: 1600000
B12: Sr lening | F12: Target Equity IRR | H12: =I12/1000 -> 0.001 | I12: 1 | J12: Uses of Funds | L12: Amount | M12: Percent | R12: Commerciele waarde | T12: 1870000 | U12: 1870000 | V12: 1870000
C13: Minimum DSCR Sr Lening | D13: 1.3 | F13: Equity IRR | H13: =Model!D419 -> 0.05935048163 | J13: Capital Expenditures | L13: =E195 -> 1443553.784 | R13: Max sr Debt | T13: 1064100 | U13: 1072100 | V13: 1293100 | AA13: =+IF(ABS(net_position)>0.5,"NEED TO RUN MODEL","") -> NEED TO RUN MODEL
C14: Resulting | D14: =D265 -> 0 | J14: Transaction Costs | L14: =E196 -> 125000 | R14: Sr Debt / Capex | T14: 0.6050625 | U14: 0.6700625 | V14: 0.8081875 | AA14: optimalisatie van SHL eruit gehaald dus model lost niet zelf funding gap op
C15: Rente | D15: 0.034 | F15: Resulting Cap Exp | H15: 1443553.784 | J15: Beheerkosten | L15: 50000 | R15: Max Jr Lening | T15: 129100 | U15: 142100 | V15: 177100
C16: Effective Quarterly | D16: ='Annualized PF'!F22 -> 0.032725 | F16: Electricity Cost/kWh | H16: =Z7/100 -> 0.07 | J16: Sub-total | L16: 1618553.784 | R16: cash equity IRR | T16: 0.104 | U16: 0.103 | V16: 0.101
C17: Looptijd | D17: 15 | J17: Interest During Construction | L17: 70335.51097 | R17: Equity | T17: 325000 | U17: 350000 | V17: 400000
C18: Sr. Debt amount | D18: 1352166.606 | F18: Fix Debt Repayments | H18: TRUE | J18: Cash for Reserves | L18: =E232 -> 54343.69698 | R18: Start SHL | T18: 0 | U18: 0 | V18: 0
C19: Max Debt to Capital | D19: 0.65 | J19: Total | L19: =SUM(L16:L18) -> 1743232.992 | R19: Total non-equity | T19: =sr_1+jr_1+shl_1 -> 1193200 | U19: =sr_1+jr_1+shl_1 -> 1193200 | V19: =sr_1+jr_1+shl_1 -> 1193200
C20: Cash Sweep | D20: 0.5 | F20: Apply Dynamic Goal Seek | H20: FALSE
C21: Level Repayment (True) /Sculpt | D21: TRUE | J21: Sources of Funds
C22: Max DSCR Before Sweep | D22: 1 | F22: NPV | H22: =Model!D422 -> 344955.8653 | J22: Senior Debt | L22: =E218 -> 1093526.224 | M22: =L22/L26 -> 0.627297802
J23: Subordinated Debt | L23: =E219 -> 0 | M23: =L23/L26 -> 0
B24: Jr Lening | F24: Taxes | J24: Preference | L24: =E238 -> 324853.3838 | M24: =L24/$L$26 -> 0.186351099
C25: Apply Junior Debt | D25: FALSE | F25: First Increment | H25: 200000 | J25: Equity | L25: =E239 -> 324853.3838 | M25: =L25/$L$26 -> 0.186351099
C26: Min DSCR After Jr | D26: 1.1 | F26: Tax Rate 1st Increment | H26: 0.2 | J26: Total | L26: =SUM(L22:L25) -> 1743232.992
C27: Actual | D27: =D284 -> 1.759874056 | F27: Tax Rate 2nd Increment | H27: 0.25
C28: Rente | D28: 0.065
C29: Effective Quarterly | D29: ='Annualized PF'!I22 -> 0.0625625 | F29: Construction Months | H29: 14 | J29: Preference Shares
C30: Looptijd | D30: 19 | J30: Percent of Equity | L30: 0.5
C31: Amount | D31: 155100 | F31: Tax Depreciation Life | H31: 20 | J31: Interest Rate | L31: 0.12
C32: Max Total Debt to Capital | D32: 0.8 | F32: Annual Rate | H32: =1/H31 -> 0.05 | J32: Tenor | L32: 20
C33: Level Repayment | D33: TRUE
F34: DSRA Percent | H34: 0.5
A36: Turnover
B37: De Burg
C38: Koude levering | D38: =Model!de_burg -> 72000 | F38: =$D38*F$2 -> 72000 | G38: 72000 | H38: 72000 | I38: 72000 | J38: 72000 | K38: 72000 | L38: 72000 | M38: 72000 | N38: 72000 | O38: 72000 | P38: 72000 | Q38: 72000 | R38: 72000 | S38: 72000 | T38: 72000 | U38: 7.2e-06 | V38: 7.2e-06 | W38: 7.2e-06 | X38: 7.2e-06 | Y38: 7.2e-06 | Z38: 7.2e-06
C39: Tarief koude | D39: 2.47 | F39: =D39*(100%+$D40*F2) -> 2.50705 | G39: =F39*(100%+$D40*G2) -> 2.54465575 | H39: 2.582825586 | I39: 2.62156797 | J39: 2.66089149 | K39: 2.700804862 | L39: 2.741316935 | M39: 2.782436689 | N39: 2.824173239 | O39: 2.866535838 | P39: 2.909533875 | Q39: 2.953176884 | R39: 2.997474537 | S39: 3.042436655 | T39: 3.088073205 | U39: 3.088073205 | V39: 3.088073205 | W39: 3.088073205 | X39: 3.088073205 | Y39: 3.088073205 | Z39: 3.088073205
C40: Indexatie tarief | D40: 0.015
C41: Omzet koude levering | F41: =F38*D39 -> 177840 | G41: =G38*F39 -> 180507.6 | H41: =H38*H39 -> 185963.4422 | I41: 188752.8938 | J41: 191584.1873 | K41: 194457.9501 | L41: 197374.8193 | M41: 200335.4416 | N41: 203340.4732 | O41: 206390.5803 | P41: 209486.439 | Q41: 212628.7356 | R41: 215818.1666 | S41: 219055.4391 | T41: 222341.2707 | U41: 2.223412707e-05 | V41: 2.223412707e-05 | W41: 2.223412707e-05 | X41: 2.223412707e-05 | Y41: 2.223412707e-05 | Z41: 2.223412707e-05
C43: Vermogen koude | D43: 5300 | F43: =$D43*F2 -> 5300 | G43: 5300 | H43: 5300 | I43: 5300 | J43: 5300 | K43: 5300 | L43: 5300 | M43: 5300 | N43: 5300 | O43: 5300 | P43: 5300 | Q43: 5300 | R43: 5300 | S43: 5300 | T43: 5300 | U43: 5.3e-07 | V43: 5.3e-07 | W43: 5.3e-07 | X43: 5.3e-07 | Y43: 5.3e-07 | Z43: 5.3e-07
C44: Vastrecht koude | D44: 11.66 | F44: =D44*(100%+$D45*F2) -> 11.8349 | G44: =F44*(100%+$D45*G2) -> 12.0124235 | H44: 12.19260985 | I44: 12.375499 | J44: 12.56113149 | K44: 12.74954846 | L44: 12.94079168 | M44: 13.13490356 | N44: 13.33192711 | O44: 13.53190602 | P44: 13.73488461 | Q44: 13.94090788 | R44: 14.1500215 | S44: 14.36227182 | T44: 14.5777059 | U44: 14.5777059 | V44: 14.5777059 | W44: 14.5777059 | X44: 14.5777059 | Y44: 14.5777059 | Z44: 14.5777059
C45: Indexatie vastrecht | D45: 0.015
C46: Omzet vastrecht koude | F46: =F43*F44 -> 62724.97 | G46: =G43*G44 -> 63665.84455 | H46: =H43*H44 -> 64620.83222 | I46: 65590.1447 | J46: 66573.99687 | K46: 67572.60683 | L46: 68586.19593 | M46: 69614.98887 | N46: 70659.2137 | O46: 71719.1019 | P46: 72794.88843 | Q46: 73886.81176 | R46: 74995.11394 | S46: 76120.04065 | T46: 77261.84126 | U46: 7.726184126e-06 | V46: 7.726184126e-06 | W46: 7.726184126e-06 | X46: 7.726184126e-06 | Y46: 7.726184126e-06 | Z46: 7.726184126e-06
C48: Totaal omzet De Burg | F48: =F46+F41 -> 240564.97 | G48: =G46+G41 -> 244173.4446 | H48: =H46+H41 -> 250584.2744 | I48: 254343.0385 | J48: 258158.1841 | K48: 262030.5569 | L48: 265961.0152 | M48: 269950.4305 | N48: 273999.6869 | O48: 278109.6822 | P48: 282281.3275 | Q48: 286515.5474 | R48: 290813.2806 | S48: 295175.4798 | T48: 299603.112 | U48: 2.99603112e-05 | V48: 2.99603112e-05 | W48: 2.99603112e-05 | X48: 2.99603112e-05 | Y48: 2.99603112e-05 | Z48: 2.99603112e-05 | AB48: To model
B50: Stammis
C51: Warmte levering | D51: 342.5 | F51: =$D51*F2 -> 342.5 | G51: 342.5 | H51: 342.5 | I51: 342.5 | J51: 342.5 | K51: 342.5 | L51: 342.5 | M51: 342.5 | N51: 342.5 | O51: 342.5 | P51: 342.5 | Q51: 342.5 | R51: 342.5 | S51: 342.5 | T51: 342.5 | U51: 3.425e-08 | V51: 3.425e-08 | W51: 3.425e-08 | X51: 3.425e-08 | Y51: 3.425e-08 | Z51: 3.425e-08
C52: Tarief warmte | D52: 18.71 | F52: =D52*(100%+$D53*F2) -> 18.99065 | G52: =F52*(100%+$D53*G2) -> 19.27550975 | H52: 19.5646424 | I52: 19.85811203 | J52: 20.15598371 | K52: 20.45832347 | L52: 20.76519832 | M52: 21.0766763 | N52: 21.39282644 | O52: 21.71371884 | P52: 22.03942462 | Q52: 22.37001599 | R52: 22.70556623 | S52: 23.04614972 | T52: 23.39184197 | U52: 23.39184197 | V52: 23.39184197 | W52: 23.39184197 | X52: 23.39184197 | Y52: 23.39184197 | Z52: 23.39184197
C53: Indexatie tarief | D53: 0.015
C54: Omzet warmte levering | F54: =F51*F52 -> 6504.297625 | G54: =G51*G52 -> 6601.862089 | H54: =H51*H52 -> 6700.890021 | I54: 6801.403371 | J54: 6903.424422 | K54: 7006.975788 | L54: 7112.080425 | M54: 7218.761631 | N54: 7327.043056 | O54: 7436.948701 | P54: 7548.502932 | Q54: 7661.730476 | R54: 7776.656433 | S54: 7893.30628 | T54: 8011.705874 | U54: 8.011705874e-07 | V54: 8.011705874e-07 | W54: 8.011705874e-07 | X54: 8.011705874e-07 | Y54: 8.011705874e-07 | Z54: 8.011705874e-07
C56: Vermogen warmte | D56: 1000 | F56: =$D56*F2 -> 1000 | G56: 1000 | H56: 1000 | I56: 1000 | J56: 1000 | K56: 1000 | L56: 1000 | M56: 1000 | N56: 1000 | O56: 1000 | P56: 1000 | Q56: 1000 | R56: 1000 | S56: 1000 | T56: 1000 | U56: 1e-07 | V56: 1e-07 | W56: 1e-07 | X56: 1e-07 | Y56: 1e-07 | Z56: 1e-07
C57: Vastrecht warmte | D57: 1.562 | F57: =D57*(100%+$D58*F2) -> 1.58543 | G57: =F57*(100%+$D58*G2) -> 1.60921145 | H57: 1.633349622 | I57: 1.657849866 | J57: 1.682717614 | K57: 1.707958378 | L57: 1.733577754 | M57: 1.75958142 | N57: 1.785975142 | O57: 1.812764769 | P57: 1.83995624 | Q57: 1.867555584 | R57: 1.895568918 | S57: 1.924002451 | T57: 1.952862488 | U57: 1.952862488 | V57: 1.952862488 | W57: 1.952862488 | X57: 1.952862488 | Y57: 1.952862488 | Z57: 1.952862488
C58: Indexatie vastrecht | D58: 0.015
C59: Omzet vastrecht warmte | F59: =F56*F57 -> 1585.43 | G59: =G56*G57 -> 1609.21145 | H59: =H56*H57 -> 1633.349622 | I59: 1657.849866 | J59: 1682.717614 | K59: 1707.958378 | L59: 1733.577754 | M59: 1759.58142 | N59: 1785.975142 | O59: 1812.764769 | P59: 1839.95624 | Q59: 1867.555584 | R59: 1895.568918 | S59: 1924.002451 | T59: 1952.862488 | U59: 1.952862488e-07 | V59: 1.952862488e-07 | W59: 1.952862488e-07 | X59: 1.952862488e-07 | Y59: 1.952862488e-07 | Z59: 1.952862488e-07
C61: Koude levering | D61: 14 | F61: =$D61*F2 -> 14 | G61: 14 | H61: 14 | I61: 14 | J61: 14 | K61: 14 | L61: 14 | M61: 14 | N61: 14 | O61: 14 | P61: 14 | Q61: 14 | R61: 14 | S61: 14 | T61: 14 | U61: 1.4e-09 | V61: 1.4e-09 | W61: 1.4e-09 | X61: 1.4e-09 | Y61: 1.4e-09 | Z61: 1.4e-09
C62: Tarief koude | D62: 18.71 | F62: =D62*(100%+$D63*F2) -> 18.8971 | G62: =F62*(100%+$D63*G2) -> 19.086071 | H62: 19.27693171 | I62: 19.46970103 | J62: 19.66439804 | K62: 19.86104202 | L62: 20.05965244 | M62: 20.26024896 | N62: 20.46285145 | O62: 20.66747997 | P62: 20.87415477 | Q62: 21.08289631 | R62: 21.29372528 | S62: 21.50666253 | T62: 21.72172915 | U62: 21.72172915 | V62: 21.72172916 | W62: 21.72172916 | X62: 21.72172916 | Y62: 21.72172916 | Z62: 21.72172916
C63: Indexatie tarief | D63: 0.01
C64: Omzet koude levering | F64: =F61*F62 -> 264.5594 | G64: =G61*G62 -> 267.204994 | H64: =H61*H62 -> 269.8770439 | I64: 272.5758144 | J64: 275.3015725 | K64: 278.0545882 | L64: 280.8351341 | M64: 283.6434855 | N64: 286.4799203 | O64: 289.3447195 | P64: 292.2381667 | Q64: 295.1605484 | R64: 298.1121539 | S64: 301.0932754 | T64: 304.1042082 | U64: 3.041042082e-08 | V64: 3.041042082e-08 | W64: 3.041042082e-08 | X64: 3.041042082e-08 | Y64: 3.041042082e-08 | Z64: 3.041042082e-08
C66: Vermogen koude | D66: 0 | F66: =$D66*F2 -> 0 | G66: 0 | H66: 0 | I66: 0 | J66: 0 | K66: 0 | L66: 0 | M66: 0 | N66: 0 | O66: 0 | P66: 0 | Q66: 0 | R66: 0 | S66: 0 | T66: 0 | U66: 0 | V66: 0 | W66: 0 | X66: 0 | Y66: 0 | Z66: 0
C67: Vastrecht koude | D67: 0 | F67: =D67*(100%+$D68*F2) -> 0 | G67: =F67*(100%+$D68*G2) -> 0 | H67: 0 | I67: 0 | J67: 0 | K67: 0 | L67: 0 | M67: 0 | N67: 0 | O67: 0 | P67: 0 | Q67: 0 | R67: 0 | S67: 0 | T67: 0 | U67: 0 | V67: 0 | W67: 0 | X67: 0 | Y67: 0 | Z67: 0
C68: Indexatie vastrecht | D68: 0.01
C69: Omzet vastrecht koude | F69: =F66*F67 -> 0 | G69: =G66*G67 -> 0 | H69: =H66*H67 -> 0 | I69: 0 | J69: 0 | K69: 0 | L69: 0 | M69: 0 | N69: 0 | O69: 0 | P69: 0 | Q69: 0 | R69: 0 | S69: 0 | T69: 0 | U69: 0 | V69: 0 | W69: 0 | X69: 0 | Y69: 0 | Z69: 0
C71: Totaal omzet Stammis | F71: =F69+F64+F59+F54 -> 8354.287025 | G71: =G69+G64+G59+G54 -> 8478.278533 | H71: =H69+H64+H59+H54 -> 8604.116686 | I71: 8731.829051 | J71: 8861.443608 | K71: 8992.988754 | L71: 9126.493313 | M71: 9261.986537 | N71: 9399.498117 | O71: 9539.05819 | P71: 9680.697339 | Q71: 9824.446608 | R71: 9970.337505 | S71: 10118.40201 | T71: 10268.67257 | U71: 1.026867257e-06 | V71: 1.026867257e-06 | W71: 1.026867257e-06 | X71: 1.026867257e-06 | Y71: 1.026867257e-06 | Z71: 1.026867257e-06 | AB71: To model
C73: Total Revenues | F73: =F71+F48 -> 248919.257 | G73: 252651.7231 | H73: 259188.3911 | I73: 263074.8676 | J73: 267019.6277 | K73: 271023.5456 | L73: 275087.5086 | M73: 279212.417 | N73: 283399.185 | O73: 287648.7404 | P73: 291962.0248 | Q73: 296339.994 | R73: 300783.6181 | S73: 305293.8818 | T73: 309871.7846 | U73: 3.098717846e-05 | V73: 3.098717846e-05 | W73: 3.098717846e-05 | X73: 3.098717846e-05 | Y73: 3.098717846e-05 | Z73: 3.098717846e-05
A75: OPERATING COST
B76: De Burg
C77: Electriciteitsverbruik | D77: =D38*4.90041666666667 -> 352830 | F77: =$D77*F2 -> 352830 | G77: 352830 | H77: 352830 | I77: 352830 | J77: 352830 | K77: 352830 | L77: 352830 | M77: 352830 | N77: 352830 | O77: 352830 | P77: 352830 | Q77: 352830 | R77: 352830 | S77: 352830 | T77: 352830 | U77: 3.5283e-05 | V77: 3.5283e-05 | W77: 3.5283e-05 | X77: 3.5283e-05 | Y77: 3.5283e-05 | Z77: 3.5283e-05
C78: Inkoopprijs elektriciteit | D78: =Model!H16 -> 0.07 | F78: =D78*(100%+$D79*F2) -> 0.0707 | G78: =F78*(100%+$D79*G2) -> 0.071407 | H78: 0.07212107 | I78: 0.0728422807 | J78: 0.07357070351 | K78: 0.07430641054 | L78: 0.07504947465 | M78: 0.07579996939 | N78: 0.07655796909 | O78: 0.07732354878 | P78: 0.07809678427 | Q78: 0.07887775211 | R78: 0.07966652963 | S78: 0.08046319493 | T78: 0.08126782688 | U78: 0.08126782688 | V78: 0.08126782688 | W78: 0.08126782688 | X78: 0.08126782688 | Y78: 0.08126782688 | Z78: 0.08126782688
C79: Indexatie inkoopprijs | D79: 0.01
C80: Totaal inkoopkosten | F80: =F77*F78 -> 24945.081 | G80: =G77*G78 -> 25194.53181 | H80: =H77*H78 -> 25446.47713 | I80: 25700.9419 | J80: 25957.95132 | K80: 26217.53083 | L80: 26479.70614 | M80: 26744.5032 | N80: 27011.94823 | O80: 27282.06772 | P80: 27554.88839 | Q80: 27830.43728 | R80: 28108.74165 | S80: 28389.82907 | T80: 28673.72736 | U80: 2.867372736e-06 | V80: 2.867372736e-06 | W80: 2.867372736e-06 | X80: 2.867372736e-06 | Y80: 2.867372736e-06 | Z80: 2.867372736e-06
B82: Stammis
C83: Electriciteitsverbruik | D83: 19028 | F83: =$D83*F2 -> 19028 | G83: 19028 | H83: 19028 | I83: 19028 | J83: 19028 | K83: 19028 | L83: 19028 | M83: 19028 | N83: 19028 | O83: 19028 | P83: 19028 | Q83: 19028 | R83: 19028 | S83: 19028 | T83: 19028 | U83: 1.9028e-06 | V83: 1.9028e-06 | W83: 1.9028e-06 | X83: 1.9028e-06 | Y83: 1.9028e-06 | Z83: 1.9028e-06
C84: Inkoopprijs elektriciteit | D84: =Model!D78 -> 0.07 | F84: =D84*(100%+$D85*F2) -> 0.0707 | G84: =F84*(100%+$D85*G2) -> 0.071407 | H84: 0.07212107 | I84: 0.0728422807 | J84: 0.07357070351 | K84: 0.07430641054 | L84: 0.07504947465 | M84: 0.07579996939 | N84: 0.07655796909 | O84: 0.07732354878 | P84: 0.07809678427 | Q84: 0.07887775211 | R84: 0.07966652963 | S84: 0.08046319493 | T84: 0.08126782688 | U84: 0.08126782688 | V84: 0.08126782688 | W84: 0.08126782688 | X84: 0.08126782688 | Y84: 0.08126782688 | Z84: 0.08126782688
C85: Indexatie inkoopprijs | D85: 0.01
C86: Totaal inkoopkosten | F86: =F83*F84 -> 1345.2796 | G86: =G83*G84 -> 1358.732396 | H86: =H83*H84 -> 1372.31972 | I86: 1386.042917 | J86: 1399.903346 | K86: 1413.90238 | L86: 1428.041404 | M86: 1442.321818 | N86: 1456.745036 | O86: 1471.312486 | P86: 1486.025611 | Q86: 1500.885867 | R86: 1515.894726 | S86: 1531.053673 | T86: 1546.36421 | U86: 1.54636421e-07 | V86: 1.54636421e-07 | W86: 1.54636421e-07 | X86: 1.54636421e-07 | Y86: 1.54636421e-07 | Z86: 1.54636421e-07
C88: Total | F88: =F86+F80 -> 26290.3606 | G88: =G86+G80 -> 26553.26421 | H88: =H86+H80 -> 26818.79685 | I88: 27086.98482 | J88: 27357.85466 | K88: 27631.43321 | L88: 27907.74754 | M88: 28186.82502 | N88: 28468.69327 | O88: 28753.3802 | P88: 29040.914 | Q88: 29331.32314 | R88: 29624.63638 | S88: 29920.88274 | T88: 30220.09157 | U88: 3.022009157e-06 | V88: 3.022009157e-06 | W88: 3.022009157e-06 | X88: 3.022009157e-06 | Y88: 3.022009157e-06 | Z88: 3.022009157e-06
A90: OPEX | F90: 0 | G90: 1 | H90: =G90+1 -> 2 | I90: =H90+1 -> 3 | J90: 4 | K90: 5 | L90: 6 | M90: 7 | N90: 8 | O90: 9 | P90: 10 | Q90: 11 | R90: 12 | S90: 13 | T90: 14 | U90: 15 | V90: 16 | W90: 17 | X90: 18 | Y90: 19 | Z90: 20 | AA90: 21
B91: De Burg + Stammis
B92: Onderhoud
C93: Asset kostprijs | D93: =Model!D140 -> 1443553.784 | F93: =Model!D93 -> 1443553.784 | G93: =Model!F93 -> 1443553.784 | H93: =Model!G93 -> 1443553.784 | I93: =Model!H93 -> 1443553.784 | J93: =Model!I93 -> 1443553.784 | K93: =Model!J93 -> 1443553.784
C94: % onderhoudskosten | F94: 0.005 | G94: 0.0075 | H94: 0.01 | I94: 0.015 | J94: 0.02 | K94: 0.025
C95: Indexatie | L95: 0.015 | M95: =Model!L95 -> 0.015 | N95: =Model!M95 -> 0.015 | O95: =Model!N95 -> 0.015 | P95: =Model!O95 -> 0.015 | Q95: =Model!P95 -> 0.015 | R95: =Model!Q95 -> 0.015 | S95: =Model!R95 -> 0.015 | T95: =Model!S95 -> 0.015 | U95: =Model!T95 -> 0.015 | V95: =Model!U95 -> 0.015 | W95: =Model!V95 -> 0.015 | X95: =Model!W95 -> 0.015 | Y95: =Model!X95 -> 0.015 | Z95: =Model!Y95 -> 0.015
C96: Onderhoudskosten | F96: =F94*F93 -> 7217.768919 | G96: 10826.65338 | H96: 14435.53784 | I96: 21653.30676 | J96: 28871.07568 | K96: 36088.8446 | L96: =K96*(100%+$L95)*L2 -> 36630.17726 | M96: =L96*(100%+$L95)*M2 -> 37179.62992 | N96: 37737.32437 | O96: 38303.38424 | P96: 38877.935 | Q96: 39461.10403 | R96: 40053.02059 | S96: 40653.8159 | T96: 41263.62313 | U96: 4.188257748e-06 | V96: 4.251081614e-16 | W96: 4.314847839e-26 | X96: 4.379570556e-36 | Y96: 4.445264114e-46 | Z96: 4.511943076e-56 | AB96: To model
B98: Monitoring & Verification
C99: Project kostprijs | D99: =Model!D140 -> 1443553.784
C100: % monitoringkosten | D100: 0.004
C101: Indexatie | D101: 0.015
C102: Monitoring kosten | F102: =$D$99*$D$100*(100%+$D$101)*F2 -> 5860.828362 | G102: =$D$99*$D$100*G2*(100%+$D$101)^H90 -> 5948.740788 | H102: 6037.9719 | I102: 6128.541478 | J102: 6220.4696 | K102: 6313.776644 | L102: 6408.483294 | M102: 6504.610543 | N102: 6602.179701 | O102: 6701.212397 | P102: 6801.730583 | Q102: 6903.756542 | R102: 7007.31289 | S102: 7112.422583 | T102: 7219.108922 | U102: 7.327395556e-07 | V102: 7.437306489e-07 | W102: 7.548866086e-07 | X102: 7.662099078e-07 | Y102: 7.777030564e-07 | Z102: 7.893686022e-07
G103: `
B104: Verzekering
C105: Omzet levering koude | F105: =Model!F41 -> 177840 | G105: =Model!G41 -> 180507.6 | H105: =Model!H41 -> 185963.4422 | I105: =Model!I41 -> 188752.8938 | J105: =Model!J41 -> 191584.1873 | K105: =Model!K41 -> 194457.9501 | L105: =Model!L41 -> 197374.8193 | M105: =Model!M41 -> 200335.4416 | N105: =Model!N41 -> 203340.4732 | O105: =Model!O41 -> 206390.5803 | P105: =Model!P41 -> 209486.439 | Q105: =Model!Q41 -> 212628.7356 | R105: =Model!R41 -> 215818.1666 | S105: =Model!S41 -> 219055.4391 | T105: =Model!T41 -> 222341.2707 | U105: =Model!U41 -> 2.223412707e-05 | V105: =Model!V41 -> 2.223412707e-05 | W105: =Model!W41 -> 2.223412707e-05 | X105: =Model!X41 -> 2.223412707e-05 | Y105: =Model!Y41 -> 2.223412707e-05 | Z105: =Model!Z41 -> 2.223412707e-05
C106: Omzet vastrechte koude | F106: =Model!F46 -> 62724.97 | G106: =Model!G46 -> 63665.84455 | H106: =Model!H46 -> 64620.83222 | I106: =Model!I46 -> 65590.1447 | J106: =Model!J46 -> 66573.99687 | K106: =Model!K46 -> 67572.60683 | L106: =Model!L46 -> 68586.19593 | M106: =Model!M46 -> 69614.98887 | N106: =Model!N46 -> 70659.2137 | O106: =Model!O46 -> 71719.1019 | P106: =Model!P46 -> 72794.88843 | Q106: =Model!Q46 -> 73886.81176 | R106: =Model!R46 -> 74995.11394 | S106: =Model!S46 -> 76120.04065 | T106: =Model!T46 -> 77261.84126 | U106: =Model!U46 -> 7.726184126e-06 | V106: =Model!V46 -> 7.726184126e-06 | W106: =Model!W46 -> 7.726184126e-06 | X106: =Model!X46 -> 7.726184126e-06 | Y106: =Model!Y46 -> 7.726184126e-06 | Z106: =Model!Z46 -> 7.726184126e-06
C107: Totaal | F107: =F105+F106 -> 240564.97 | G107: =G105+G106 -> 244173.4446 | H107: =H105+H106 -> 250584.2744 | I107: 254343.0385 | J107: 258158.1841 | K107: 262030.5569 | L107: 265961.0152 | M107: 269950.4305 | N107: 273999.6869 | O107: 278109.6822 | P107: 282281.3275 | Q107: 286515.5474 | R107: 290813.2806 | S107: 295175.4798 | T107: 299603.112 | U107: 2.99603112e-05 | V107: 2.99603112e-05 | W107: 2.99603112e-05 | X107: 2.99603112e-05 | Y107: 2.99603112e-05 | Z107: 2.99603112e-05
C108: % verzekeringskosten | D108: 0.015 | F108: =F107*$D$108 -> 3608.47455 | G108: 3662.601668 | H108: 3758.764116 | I108: 3815.145578 | J108: 3872.372762 | K108: 3930.458353 | L108: 3989.415229 | M108: 4049.256457 | N108: 4109.995304 | O108: 4171.645233 | P108: 4234.219912 | Q108: 4297.733211 | R108: 4362.199209 | S108: 4427.632197 | T108: 4494.04668 | U108: 4.49404668e-07 | V108: 4.49404668e-07 | W108: 4.49404668e-07 | X108: 4.49404668e-07 | Y108: 4.49404668e-07 | Z108: 4.49404668e-07 | AB108: To model
B110: Beheerkosten
C111: Totaal investering | D111: =D140+D146+D153 -> 1443553.784
C112: % Beheerkosten | D112: 0.01
C113: Indexatie | D113: 0.015
C114: Beheerkosten | E114: 50000 | F114: 0 | G114: =$D$111*$D$112*(1+$D$113)^(G$90)*G2 -> 14652.07091 | H114: 14871.85197 | I114: 15094.92975 | J114: 15321.3537 | K114: 15551.174 | L114: 15784.44161 | M114: 16021.20823 | N114: 16261.52636 | O114: 16505.44925 | P114: 16753.03099 | Q114: 17004.32646 | R114: 17259.39135 | S114: 17518.28222 | T114: 17781.05646 | U114: 1.80477723e-06 | V114: 1.831848889e-06 | W114: 1.859326622e-06 | X114: 1.887216522e-06 | Y114: 1.915524769e-06 | Z114: 1.944257641e-06 | AB114: To model
C116: Huur Technische ruimte | D116: 5000 | F116: =$D$116*F2 -> 5000 | G116: 5000 | H116: 5000 | I116: 5000 | J116: 5000 | K116: 5000 | L116: 5000 | M116: 5000 | N116: 5000 | O116: 5000 | P116: 5000 | Q116: 5000 | R116: 5000 | S116: 5000 | T116: 5000 | U116: 5e-07 | V116: 5e-07 | W116: 5e-07 | X116: 5e-07 | Y116: 5e-07 | Z116: 5e-07
C118: Total Operating Expenses | F118: =F114+F108+F102+F96+F116 -> 21687.07183 | G118: =G114+G108+G102+G96+G116 -> 40090.06674 | H118: 44104.12582 | I118: 51691.92356 | J118: 59285.27173 | K118: 66884.25359 | L118: 67812.5174 | M118: 68754.70516 | N118: 69711.02574 | O118: 70681.69112 | P118: 71666.91649 | Q118: 72666.92024 | R118: 73681.92404 | S118: 74712.1529 | T118: 75757.83519 | U118: 7.675179202e-06 | V118: 3.524984206e-06 | W118: 3.563617899e-06 | X118: 3.602831097e-06 | Y118: 3.642632494e-06 | Z118: 3.683030911e-06
C120: EBITDA | F120: =F73-F118-F88 -> 200941.8246 | G120: 186008.3921 | H120: 188265.4684 | I120: 184295.9592 | J120: 180376.5013 | K120: 176507.8588 | L120: 179367.2436 | M120: 182270.8868 | N120: 185219.466 | O120: 188213.6691 | P120: 191254.1943 | Q120: 194341.7506 | R120: 197477.0577 | S120: 200660.8462 | T120: 203893.8578 | U120: 2.02899901e-05 | V120: 2.444018509e-05 | W120: 2.44015514e-05 | X120: 2.43623382e-05 | Y120: 2.432253681e-05 | Z120: 2.428213839e-05
C121: Check | F121: =F120-F246 -> 0 | G121: 0 | H121: 0 | I121: 0 | J121: 0 | K121: 0 | L121: 0 | M121: 0 | N121: 0 | O121: 0 | P121: 0 | Q121: 0 | R121: 0 | S121: 0 | T121: 0 | U121: 0 | V121: 0 | W121: 0 | X121: 0 | Y121: 0 | Z121: 0
A123: WORKING CAPITAL CHANGES
B124: Days Sales Outstanding | D124: 0 | F124: =$D$124 -> 0 | G124: =$D$124 -> 0 | H124: 0 | I124: 0 | J124: 0 | K124: 0 | L124: 0 | M124: 0 | N124: 0 | O124: 0 | P124: 0 | Q124: 0 | R124: 0 | S124: 0 | T124: 0 | U124: 0 | V124: 0 | W124: 0 | X124: 0 | Y124: 0 | Z124: 0
B125: Percent of Revenues | F125: =F124/(360*F2) -> 0 | G125: 0 | H125: 0 | I125: 0 | J125: 0 | K125: 0 | L125: 0 | M125: 0 | N125: 0 | O125: 0 | P125: 0 | Q125: 0 | R125: 0 | S125: 0 | T125: 0 | U125: 0 | V125: 0 | W125: 0 | X125: 0 | Y125: 0 | Z125: 0
B126: Revenues | F126: =Model!F88 -> 26290.3606 | G126: =Model!G88 -> 26553.26421 | H126: =Model!H88 -> 26818.79685 | I126: =Model!I88 -> 27086.98482 | J126: =Model!J88 -> 27357.85466 | K126: =Model!K88 -> 27631.43321 | L126: =Model!L88 -> 27907.74754 | M126: =Model!M88 -> 28186.82502 | N126: =Model!N88 -> 28468.69327 | O126: =Model!O88 -> 28753.3802 | P126: =Model!P88 -> 29040.914 | Q126: =Model!Q88 -> 29331.32314 | R126: =Model!R88 -> 29624.63638 | S126: =Model!S88 -> 29920.88274 | T126: =Model!T88 -> 30220.09157 | U126: =Model!U88 -> 3.022009157e-06 | V126: =Model!V88 -> 3.022009157e-06 | W126: =Model!W88 -> 3.022009157e-06 | X126: =Model!X88 -> 3.022009157e-06 | Y126: =Model!Y88 -> 3.022009157e-06 | Z126: =Model!Z88 -> 3.022009157e-06
B127: Debiteuren | F127: =F126*F125 -> 0 | G127: =G126*G125 -> 0 | H127: 0 | I127: 0 | J127: 0 | K127: 0 | L127: 0 | M127: 0 | N127: 0 | O127: 0 | P127: 0 | Q127: 0 | R127: 0 | S127: 0 | T127: 0 | U127: 0 | V127: 0 | W127: 0 | X127: 0 | Y127: 0 | Z127: 0
B128: ∆ Debiteuren | F128: =F127-E127 -> 0 | G128: =G127-F127 -> 0 | H128: 0 | I128: 0 | J128: 0 | K128: 0 | L128: 0 | M128: 0 | N128: 0 | O128: 0 | P128: 0 | Q128: 0 | R128: 0 | S128: 0 | T128: 0 | U128: 0 | V128: 0 | W128: 0 | X128: 0 | Y128: 0 | Z128: 0
B130: Days Payables Outstanding | D130: 0 | F130: =$D$130 -> 0 | G130: =$D$130 -> 0 | H130: 0 | I130: 0 | J130: 0 | K130: 0 | L130: 0 | M130: 0 | N130: 0 | O130: 0 | P130: 0 | Q130: 0 | R130: 0 | S130: 0 | T130: 0 | U130: 0 | V130: 0 | W130: 0 | X130: 0 | Y130: 0 | Z130: 0
B131: Percent of Operating Cost | F131: =F130/(360*F2) -> 0 | G131: 0 | H131: 0 | I131: 0 | J131: 0 | K131: 0 | L131: 0 | M131: 0 | N131: 0 | O131: 0 | P131: 0 | Q131: 0 | R131: 0 | S131: 0 | T131: 0 | U131: 0 | V131: 0 | W131: 0 | X131: 0 | Y131: 0 | Z131: 0
B132: Operating Expenses | F132: =Model!F118 -> 21687.07183 | G132: =Model!G118 -> 40090.06674 | H132: =Model!H118 -> 44104.12582 | I132: =Model!I118 -> 51691.92356 | J132: =Model!J118 -> 59285.27173 | K132: =Model!K118 -> 66884.25359 | L132: =Model!L118 -> 67812.5174 | M132: =Model!M118 -> 68754.70516 | N132: =Model!N118 -> 69711.02574 | O132: =Model!O118 -> 70681.69112 | P132: =Model!P118 -> 71666.91649 | Q132: =Model!Q118 -> 72666.92024 | R132: =Model!R118 -> 73681.92404 | S132: =Model!S118 -> 74712.1529 | T132: =Model!T118 -> 75757.83519 | U132: =Model!U118 -> 7.675179202e-06 | V132: =Model!V118 -> 3.524984206e-06 | W132: =Model!W118 -> 3.563617899e-06 | X132: =Model!X118 -> 3.602831097e-06 | Y132: =Model!Y118 -> 3.642632494e-06 | Z132: =Model!Z118 -> 3.683030911e-06
B133: Crediteuren | F133: =F131*F132 -> 0 | G133: =G131*G132 -> 0 | H133: 0 | I133: 0 | J133: 0 | K133: 0 | L133: 0 | M133: 0 | N133: 0 | O133: 0 | P133: 0 | Q133: 0 | R133: 0 | S133: 0 | T133: 0 | U133: 0 | V133: 0 | W133: 0 | X133: 0 | Y133: 0 | Z133: 0
B134: ∆ Crediteuren | F134: =F133-E133 -> 0 | G134: =G133-F133 -> 0 | H134: 0 | I134: 0 | J134: 0 | K134: 0 | L134: 0 | M134: 0 | N134: 0 | O134: 0 | P134: 0 | Q134: 0 | R134: 0 | S134: 0 | T134: 0 | U134: 0 | V134: 0 | W134: 0 | X134: 0 | Y134: 0 | Z134: 0
B136: ∆ Working Capital | F136: =F128-F134 -> 0 | G136: =G128-G134 -> 0 | H136: 0 | I136: 0 | J136: 0 | K136: 0 | L136: 0 | M136: 0 | N136: 0 | O136: 0 | P136: 0 | Q136: 0 | R136: 0 | S136: 0 | T136: 0 | U136: 0 | V136: 0 | W136: 0 | X136: 0 | Y136: 0 | Z136: 0
A138: CAPEX | F138: 0 | G138: 1 | H138: =G138+1 -> 2 | I138: =H138+1 -> 3 | J138: 4 | K138: 5 | L138: 6 | M138: 7 | N138: 8 | O138: 9 | P138: 10 | Q138: 11 | R138: 12 | S138: 13 | T138: 14 | U138: 15 | V138: 16 | W138: 17 | X138: 18 | Y138: 19 | Z138: 20
B139: Capex 1
C140: Amount | D140: =Model!H15 -> 1443553.784
C141: Year | D141: 0
C142: Capex life | D142: =H31 -> 20
C143: Capex | E143: =-$D$140*(F$138=$D$141) -> -1443553.784 | G143: =-$D$140*(G$138=$D$141) -> 0 | H143: 0 | I143: 0 | J143: 0 | K143: 0 | L143: 0 | M143: 0 | N143: 0 | O143: 0 | P143: 0 | Q143: 0 | R143: 0 | S143: 0 | T143: 0 | U143: 0 | V143: 0 | W143: 0 | X143: 0 | Y143: 0 | Z143: 0
C144: Depreciation | E144: =($D$140/$D$142)*(AND(F$138>$D$141,F138<=($D$141+$D$142))) -> 0 | G144: =($D$140/$D$142)*(AND(G$138>$D$141,G138<=($D$141+$D$142))) -> 72177.68919 | H144: 72177.68919 | I144: 72177.68919 | J144: 72177.68919 | K144: 72177.68919 | L144: 72177.68919 | M144: 72177.68919 | N144: 72177.68919 | O144: 72177.68919 | P144: 72177.68919 | Q144: 72177.68919 | R144: 72177.68919 | S144: 72177.68919 | T144: 72177.68919 | U144: 72177.68919 | V144: 72177.68919 | W144: 72177.68919 | X144: 72177.68919 | Y144: 72177.68919 | Z144: 72177.68919
B146: Capex 2
C147: Year | D147: 0
C148: Capex life | D148: 20
C149: Capex | E149: =-$D$146*(F$138=$D$147) -> 0 | G149: =-$D$146*(G$138=$D$147) -> 0 | H149: 0 | I149: 0 | J149: 0 | K149: 0 | L149: 0 | M149: 0 | N149: 0 | O149: 0 | P149: 0 | Q149: 0 | R149: 0 | S149: 0 | T149: 0 | U149: 0 | V149: 0 | W149: 0 | X149: 0 | Y149: 0 | Z149: 0
C150: Depreciation | E150: =($D$146/$D$148)*(AND(F$138>$D$147,F$138<=($D$147+$D$148))) -> 0 | G150: =($D$146/$D$148)*(AND(G$138>$D$147,G$138<=($D$147+$D$148))) -> 0 | H150: 0 | I150: 0 | J150: 0 | K150: 0 | L150: 0 | M150: 0 | N150: 0 | O150: 0 | P150: 0 | Q150: 0 | R150: 0 | S150: 0 | T150: 0 | U150: 0 | V150: 0 | W150: 0 | X150: 0 | Y150: 0 | Z150: 0
B152: Capex 3
C153: Amount | D153: 0
C154: Year | D154: 0
C155: Capex life | D155: 15
C156: Capex | E156: =-$D$153*(F$138=$D$154) -> 0 | G156: =-$D$153*(G$138=$D$154) -> 0 | H156: 0 | I156: 0 | J156: 0 | K156: 0 | L156: 0 | M156: 0 | N156: 0 | O156: 0 | P156: 0 | Q156: 0 | R156: 0 | S156: 0 | T156: 0 | U156: 0 | V156: 0 | W156: 0 | X156: 0 | Y156: 0 | Z156: 0
C157: Depreciation | E157: =($D$153/$D$155)*(AND(F$138>$D$154,F$138<=($D$154+$D$155))) -> 0 | G157: =($D$153/$D$155)*(AND(G$138>$D$154,G$138<=($D$154+$D$155))) -> 0 | H157: 0 | I157: 0 | J157: 0 | K157: 0 | L157: 0 | M157: 0 | N157: 0 | O157: 0 | P157: 0 | Q157: 0 | R157: 0 | S157: 0 | T157: 0 | U157: 0 | V157: 0 | W157: 0 | X157: 0 | Y157: 0 | Z157: 0
C159: Total Capex | E159: =(E143+E149+E156)*-1 -> 1443553.784 | G159: =G143+G149+G156 -> 0 | H159: 0 | I159: 0 | J159: 0 | K159: 0 | L159: 0 | M159: 0 | N159: 0 | O159: 0 | P159: 0 | Q159: 0 | R159: 0 | S159: 0 | T159: 0 | U159: 0 | V159: 0 | W159: 0 | X159: 0 | Y159: 0 | Z159: 0 | AB159: To model
C160: Transaction Costs | E160: =E196 -> 125000
C161: Beheerkosten | E161: =E197 -> 50000
C162: Interest During Construction | E162: =E199 -> 70335.51097
C163: Total Depreciation Base | E163: =SUM(E159:E162) -> 1688889.295
C165: Total depreciation Rate | D165: =D142 -> 20 | F165: =1/$D$165*F2 -> 0.05 | G165: 0.05 | H165: 0.05 | I165: 0.05 | J165: 0.05 | K165: 0.05 | L165: 0.05 | M165: 0.05 | N165: 0.05 | O165: 0.05 | P165: 0.05 | Q165: 0.05 | R165: 0.05 | S165: 0.05 | T165: 0.05 | U165: 5e-12 | V165: 5e-12 | W165: 5e-12 | X165: 5e-12 | Y165: 5e-12 | Z165: 5e-12
C166: Total depreciation | D166: =E163 -> 1688889.295 | E166: =E144+E150+E157 -> 0 | F166: =MIN(F165*$D$166,E170) -> 84444.46474 | G166: =MIN(G165*$D$166,F170) -> 84444.46474 | H166: 84444.46474 | I166: 84444.46474 | J166: 84444.46474 | K166: 84444.46474 | L166: 84444.46474 | M166: 84444.46474 | N166: 84444.46474 | O166: 84444.46474 | P166: 84444.46474 | Q166: 84444.46474 | R166: 84444.46474 | S166: 84444.46474 | T166: 84444.46474 | U166: 8.444446474e-06 | V166: 8.444446474e-06 | W166: 8.444446474e-06 | X166: 8.444446474e-06 | Y166: 8.444446474e-06 | Z166: 8.444446474e-06
C168: Gross Plant | E168: =E163 -> 1688889.295 | F168: =E168 -> 1688889.295 | G168: =F168 -> 1688889.295 | H168: 1688889.295 | I168: 1688889.295 | J168: 1688889.295 | K168: 1688889.295 | L168: 1688889.295 | M168: 1688889.295 | N168: 1688889.295 | O168: 1688889.295 | P168: 1688889.295 | Q168: 1688889.295 | R168: 1688889.295 | S168: 1688889.295 | T168: 1688889.295 | U168: 1688889.295 | V168: 1688889.295 | W168: 1688889.295 | X168: 1688889.295 | Y168: 1688889.295 | Z168: 1688889.295
C169: Accumulated Depreciation | F169: =E169+F166 -> 84444.46474 | G169: =F169+G166 -> 168888.9295 | H169: 253333.3942 | I169: 337777.859 | J169: 422222.3237 | K169: 506666.7884 | L169: 591111.2532 | M169: 675555.7179 | N169: 760000.1827 | O169: 844444.6474 | P169: 928889.1121 | Q169: 1013333.577 | R169: 1097778.042 | S169: 1182222.506 | T169: 1266666.971 | U169: 1266666.971 | V169: 1266666.971 | W169: 1266666.971 | X169: 1266666.971 | Y169: 1266666.971 | Z169: 1266666.971
C170: Net Plant | F170: =F168-F169 -> 1604444.83 | G170: =G168-G169 -> 1520000.365 | H170: 1435555.901 | I170: 1351111.436 | J170: 1266666.971 | K170: 1182222.506 | L170: 1097778.042 | M170: 1013333.577 | N170: 928889.1121 | O170: 844444.6474 | P170: 760000.1827 | Q170: 675555.7179 | R170: 591111.2532 | S170: 506666.7884 | T170: 422222.3237 | U170: 422222.3237 | V170: 422222.3237 | W170: 422222.3237 | X170: 422222.3237 | Y170: 422222.3237 | Z170: 422222.3236
A172: Project Cash Flow and IRR
B173: EBITDA | E173: =Model!E120 -> 0 | F173: =Model!F120 -> 200941.8246 | G173: =Model!G120 -> 186008.3921 | H173: =Model!H120 -> 188265.4684 | I173: =Model!I120 -> 184295.9592 | J173: =Model!J120 -> 180376.5013 | K173: =Model!K120 -> 176507.8588 | L173: =Model!L120 -> 179367.2436 | M173: =Model!M120 -> 182270.8868 | N173: =Model!N120 -> 185219.466 | O173: =Model!O120 -> 188213.6691 | P173: =Model!P120 -> 191254.1943 | Q173: =Model!Q120 -> 194341.7506 | R173: =Model!R120 -> 197477.0577 | S173: =Model!S120 -> 200660.8462 | T173: =Model!T120 -> 203893.8578 | U173: =Model!U120 -> 2.02899901e-05 | V173: =Model!V120 -> 2.444018509e-05 | W173: =Model!W120 -> 2.44015514e-05 | X173: =Model!X120 -> 2.43623382e-05 | Y173: =Model!Y120 -> 2.432253681e-05 | Z173: =Model!Z120 -> 2.428213839e-05
B174: Less: Cap Exp | E174: =-SUM(E159:E161) -> -1618553.784 | F174: =Model!F159 -> 0 | G174: =Model!G159 -> 0 | H174: =Model!H159 -> 0 | I174: =Model!I159 -> 0 | J174: =Model!J159 -> 0 | K174: =Model!K159 -> 0 | L174: =Model!L159 -> 0 | M174: =Model!M159 -> 0 | N174: =Model!N159 -> 0 | O174: =Model!O159 -> 0 | P174: =Model!P159 -> 0 | Q174: =Model!Q159 -> 0 | R174: =Model!R159 -> 0 | S174: =Model!S159 -> 0 | T174: =Model!T159 -> 0 | U174: =Model!U159 -> 0 | V174: =Model!V159 -> 0 | W174: =Model!W159 -> 0 | X174: =Model!X159 -> 0 | Y174: =Model!Y159 -> 0 | Z174: =Model!Z159 -> 0
B175: Less: WC Movements | E175: =Model!E136 -> 0 | F175: =Model!F136 -> 0 | G175: =Model!G136 -> 0 | H175: =Model!H136 -> 0 | I175: =Model!I136 -> 0 | J175: =Model!J136 -> 0 | K175: =Model!K136 -> 0 | L175: =Model!L136 -> 0 | M175: =Model!M136 -> 0 | N175: =Model!N136 -> 0 | O175: =Model!O136 -> 0 | P175: =Model!P136 -> 0 | Q175: =Model!Q136 -> 0 | R175: =Model!R136 -> 0 | S175: =Model!S136 -> 0 | T175: =Model!T136 -> 0 | U175: =Model!U136 -> 0 | V175: =Model!V136 -> 0 | W175: =Model!W136 -> 0 | X175: =Model!X136 -> 0 | Y175: =Model!Y136 -> 0 | Z175: =Model!Z136 -> 0
C176: Pre-tax Free Cash Flow | E176: =E173+E174+E175 -> -1618553.784 | F176: =F173+F174+F175 -> 200941.8246 | G176: 186008.3921 | H176: 188265.4684 | I176: 184295.9592 | J176: 180376.5013 | K176: 176507.8588 | L176: 179367.2436 | M176: 182270.8868 | N176: 185219.466 | O176: 188213.6691 | P176: 191254.1943 | Q176: 194341.7506 | R176: 197477.0577 | S176: 200660.8462 | T176: 203893.8578 | U176: 2.02899901e-05 | V176: 2.444018509e-05 | W176: 2.44015514e-05 | X176: 2.43623382e-05 | Y176: 2.432253681e-05 | Z176: 2.428213839e-05
B178: Pre-tax Project IRR | D178: =XIRR(E176:Z176,E1:Z1) -> 0.07727027237
B180: EBITDA | E180: =Model!E173 -> 0 | F180: =Model!F173 -> 200941.8246 | G180: =Model!G173 -> 186008.3921 | H180: =Model!H173 -> 188265.4684 | I180: =Model!I173 -> 184295.9592 | J180: =Model!J173 -> 180376.5013 | K180: =Model!K173 -> 176507.8588 | L180: =Model!L173 -> 179367.2436 | M180: =Model!M173 -> 182270.8868 | N180: =Model!N173 -> 185219.466 | O180: =Model!O173 -> 188213.6691 | P180: =Model!P173 -> 191254.1943 | Q180: =Model!Q173 -> 194341.7506 | R180: =Model!R173 -> 197477.0577 | S180: =Model!S173 -> 200660.8462 | T180: =Model!T173 -> 203893.8578 | U180: =Model!U173 -> 2.02899901e-05 | V180: =Model!V173 -> 2.444018509e-05 | W180: =Model!W173 -> 2.44015514e-05 | X180: =Model!X173 -> 2.43623382e-05 | Y180: =Model!Y173 -> 2.432253681e-05 | Z180: =Model!Z173 -> 2.428213839e-05
B181: Less: Depreciation | F181: =Model!F166 -> 84444.46474 | G181: =Model!G166 -> 84444.46474 | H181: =Model!H166 -> 84444.46474 | I181: =Model!I166 -> 84444.46474 | J181: =Model!J166 -> 84444.46474 | K181: =Model!K166 -> 84444.46474 | L181: =Model!L166 -> 84444.46474 | M181: =Model!M166 -> 84444.46474 | N181: =Model!N166 -> 84444.46474 | O181: =Model!O166 -> 84444.46474 | P181: =Model!P166 -> 84444.46474 | Q181: =Model!Q166 -> 84444.46474 | R181: =Model!R166 -> 84444.46474 | S181: =Model!S166 -> 84444.46474 | T181: =Model!T166 -> 84444.46474 | U181: =Model!U166 -> 8.444446474e-06 | V181: =Model!V166 -> 8.444446474e-06 | W181: =Model!W166 -> 8.444446474e-06 | X181: =Model!X166 -> 8.444446474e-06 | Y181: =Model!Y166 -> 8.444446474e-06 | Z181: =Model!Z166 -> 8.444446474e-06
B182: EBIT | F182: =F180-F181 -> 116497.3599 | G182: =G180-G181 -> 101563.9274 | H182: 103821.0037 | I182: 99851.49448 | J182: 95932.03659 | K182: 92063.39409 | L182: 94922.77887 | M182: 97826.42209 | N182: 100775.0013 | O182: 103769.2044 | P182: 106809.7296 | Q182: 109897.2859 | R182: 113032.5929 | S182: 116216.3814 | T182: 119449.3931 | U182: 1.184554362e-05 | V182: 1.599573862e-05 | W182: 1.595710493e-05 | X182: 1.591789173e-05 | Y182: 1.587809033e-05 | Z182: 1.583769191e-05
B183: Taxes
C184: First Increment | D184: =H25 -> 200000 | F184: =MIN($D$184,F182) -> 116497.3599 | G184: =MIN($D$184,G182) -> 101563.9274 | H184: 103821.0037 | I184: 99851.49448 | J184: 95932.03659 | K184: 92063.39409 | L184: 94922.77887 | M184: 97826.42209 | N184: 100775.0013 | O184: 103769.2044 | P184: 106809.7296 | Q184: 109897.2859 | R184: 113032.5929 | S184: 116216.3814 | T184: 119449.3931 | U184: 1.184554362e-05 | V184: 1.599573862e-05 | W184: 1.595710493e-05 | X184: 1.591789173e-05 | Y184: 1.587809033e-05 | Z184: 1.583769191e-05
C185: Taxes on First Increment | D185: =H26 -> 0.2 | F185: =MAX($D$185*F184,0) -> 23299.47197 | G185: =MAX($D$185*G184,0) -> 20312.78548 | H185: 20764.20074 | I185: 19970.2989 | J185: 19186.40732 | K185: 18412.67882 | L185: 18984.55577 | M185: 19565.28442 | N185: 20155.00026 | O185: 20753.84087 | P185: 21361.94591 | Q185: 21979.45717 | R185: 22606.51859 | S185: 23243.27628 | T185: 23889.87861 | U185: 2.369108725e-06 | V185: 3.199147724e-06 | W185: 3.191420985e-06 | X185: 3.183578346e-06 | Y185: 3.175618066e-06 | Z185: 3.167538383e-06
C186: Second Increment | F186: =F182-F184 -> 0 | G186: =G182-G184 -> 0 | H186: 0 | I186: 0 | J186: 0 | K186: 0 | L186: 0 | M186: 0 | N186: 0 | O186: 0 | P186: 0 | Q186: 0 | R186: 0 | S186: 0 | T186: 0 | U186: 0 | V186: 0 | W186: 0 | X186: 0 | Y186: 0 | Z186: 0
C187: Taxes on Second Increment | D187: =H27 -> 0.25 | F187: =MAX(F186*$D$187,0) -> 0 | G187: =MAX(G186*$D$187,0) -> 0 | H187: 0 | I187: 0 | J187: 0 | K187: 0 | L187: 0 | M187: 0 | N187: 0 | O187: 0 | P187: 0 | Q187: 0 | R187: 0 | S187: 0 | T187: 0 | U187: 0 | V187: 0 | W187: 0 | X187: 0 | Y187: 0 | Z187: 0
C188: Total Taxes | F188: =F185+F187 -> 23299.47197 | G188: =G185+G187 -> 20312.78548 | H188: 20764.20074 | I188: 19970.2989 | J188: 19186.40732 | K188: 18412.67882 | L188: 18984.55577 | M188: 19565.28442 | N188: 20155.00026 | O188: 20753.84087 | P188: 21361.94591 | Q188: 21979.45717 | R188: 22606.51859 | S188: 23243.27628 | T188: 23889.87861 | U188: 2.369108725e-06 | V188: 3.199147724e-06 | W188: 3.191420985e-06 | X188: 3.183578346e-06 | Y188: 3.175618066e-06 | Z188: 3.167538383e-06
B190: After-Tax Project Cash Flow | E190: =E176-E183 -> -1618553.784 | F190: =F176-F188 -> 177642.3526 | G190: =G176-G188 -> 165695.6067 | H190: 167501.2677 | I190: 164325.6603 | J190: 161190.094 | K190: 158095.18 | L190: 160382.6878 | M190: 162705.6024 | N190: 165064.4658 | O190: 167459.8282 | P190: 169892.2484 | Q190: 172362.2934 | R190: 174870.5391 | S190: 177417.5699 | T190: 180003.9792 | U190: 1.792088137e-05 | V190: 2.124103737e-05 | W190: 2.121013042e-05 | X190: 2.117875986e-05 | Y190: 2.114691874e-05 | Z190: 2.111460001e-05
B191: After-Tax Project IRR | D191: =XIRR(E190:Z190,E1:Z1) -> 0.05942932069
A193: Uses and Sources of Funds
B194: Uses of Funds - Before Re-financing of Crowd Funding
C195: Capital Expenditures | E195: =Model!H15 -> 1443553.784
C196: Transaction Costs | E196: 125000
C197: Beheerkosten | E197: =Model!E114 -> 50000
C198: Sub-total | E198: =SUM(E195:E197) -> 1618553.784
C199: Interest During Construction | E199: ='Annualized PF'!E43 -> 70335.51097
C200: Cash for Reserves
C201: Total | E201: =E198+E199+E200 -> 1688889.295
B203: Sources of Funds
C204: Crowd Funding - Cash Funding | E204: =D8 -> 1050000
C205: Crowd Funding - Capitalised Interest | E205: ='Annualized PF'!E43 -> 70335.51097
C206: Equity Funding | E206: =E201-E204-E205 -> 568553.7838
C207: Total Sources before Re-financing | E207: =SUM(E204:E206) -> 1688889.295
A209: Re-financing at of Crowd Funding at COD
B210: Uses of Funds
C211: Repayment of Crowd Funding | E211: =E204+E205 -> 1120335.511
C212: Funding of DSCR | E212: =E343 -> 54343.69698
C213: Subtotal | E213: =E211+E212 -> 1174679.208
C214: Repayment of Equity | E214: =MAX(E221-E213,0) -> 0
C215: Total Uses of Funds | E215: =E213+E214 -> 1174679.208
B217: Sources of Funds
C218: Senior Debt - Sized from DSCR | E218: =E299 -> 1093526.224
C219: Subordinated Debt - Sized from DSCR | E219: =Model!D463 -> 0
C220: Preference
C221: Subtotal | E221: =E218+E219+E220 -> 1093526.224
C222: Added Equity | E222: =MAX(E213-E221,0) -> 81152.98377
C223: Total | E223: =E221+E222 -> 1174679.208
A225: Total Final Sources and Uses of Funds
B226: Uses of Funds
C227: Capital Expenditures | E227: =E195 -> 1443553.784
C228: Transaction Costs | E228: =E196 -> 125000
C229: Beheerkosten | E229: 50000
C230: Sub-total | E230: 1618553.784
C231: Interest During Construction | E231: 70335.51097
C232: DSRA | E232: =E212 -> 54343.69698
C233: Total Uses of Funds | E233: =E230+E231+E232 -> 1743232.992
B235: Sources of Funds
C236: Senior Debt | E236: =E299 -> 1093526.224 | F236: =E236/E240 -> 0.627297802
C237: Junior Debt | E237: =E316 -> 0
C238: Preference Shares | E238: =(E233-E236-E237)*L30 -> 324853.3838
... 341 more rows

Sheet Annualized PF
A2: Effective Annual Interest
C3: Annual Interest Rate | F3: =Model!D15 -> 0.034 | I3: =Model!D28 -> 0.065
C4: Payments | F4: 4 | I4: 4
C5: Periodic | F5: =F3/F4 -> 0.0085 | I5: =I3/I4 -> 0.01625
C7: Annual Repayment | F7: 100 | I7: 100
C8: Periodic Repayment | F8: =F7/F4 -> 25 | I8: =I7/I4 -> 25
C10: Opening Balance | F10: =E18 -> 1000 | I10: =H18 -> 1000
C11: Repayment 1 | F11: =IF(F4=4,F8) -> 25 | I11: =IF(I4=4,I8) -> 25
C12: Subtotal | F12: =F10-F11 -> 975 | I12: =I10-I11 -> 975
C13: Repayment 2 | F13: =IF(OR(F4=2,F4=4),F8) -> 25 | I13: =IF(OR(I4=2,I4=4),I8) -> 25
C14: Subtotal | F14: =F12-F13 -> 950 | I14: =I12-I13 -> 950
C15: Repayment 3 | F15: =IF(F4=4,F8) -> 25 | I15: =IF(I4=4,I8) -> 25
C16: Subtotal | F16: =F14-F15 -> 925 | I16: =I14-I15 -> 925
C17: Repayment 4 | F17: =F8 -> 25 | I17: =I8 -> 25
C18: Closing Balance | E18: 1000 | F18: =F16-F17 -> 900 | H18: 1000 | I18: =I16-I17 -> 900
C20: Annual | F20: =F10*F3 -> 34 | I20: =I10*I3 -> 65
C21: Periodic | F21: =F5*F10+F12*F5+F14*F5+F16*F5 -> 32.725 | I21: =I5*I10+I12*I5+I14*I5+I16*I5 -> 62.5625
C22: Effective | F22: =F21/F10 -> 0.032725 | I22: =I21/I10 -> 0.0625625
A25: Interest During Construction
C26: Periods of Construction | F26: =Model!H29 -> 14
C28: Total Crowd Funding | F28: =Model!D8 -> 1050000
C29: Periodic Crowd Funding | F29: =F28/F26 -> 75000
C30: Annual Interest Rate | F30: =Model!D9 -> 0.06
C31: Periodic Interest Rate | F31: =F30/12 -> 0.005
C33: Period | F33: 1 | G33: 2 | H33: 3 | I33: 4 | J33: 5 | K33: 6 | L33: 7 | M33: 8 | N33: 9 | O33: 10 | P33: 11 | Q33: 12 | R33: 13 | S33: 14 | T33: 15 | U33: 16 | V33: 17 | W33: 18 | X33: 19 | Y33: 20
C34: Switch | E34: =F26 -> 14 | F34: =F33<=$E$34 -> TRUE | G34: =G33<=$E$34 -> TRUE | H34: TRUE | I34: TRUE | J34: TRUE | K34: TRUE | L34: TRUE | M34: TRUE | N34: TRUE | O34: TRUE | P34: TRUE | Q34: TRUE | R34: TRUE | S34: TRUE | T34: FALSE | U34: FALSE | V34: FALSE | W34: FALSE | X34: FALSE | Y34: FALSE
C35: Draws | E35: =F29 -> 75000 | F35: =$E$35*F34 -> 75000 | G35: =$E$35*G34 -> 75000 | H35: 75000 | I35: 75000 | J35: 75000 | K35: 75000 | L35: 75000 | M35: 75000 | N35: 75000 | O35: 75000 | P35: 75000 | Q35: 75000 | R35: 75000 | S35: 75000 | T35: 0 | U35: 0 | V35: 0 | W35: 0 | X35: 0 | Y35: 0
C37: Opening Balance | F37: =E40 -> 0 | G37: =F40 -> 1050000 | H37: 1055250 | I37: 1060526.25 | J37: 1065828.881 | K37: 1071158.026 | L37: 1076513.816 | M37: 1081896.385 | N37: 1087305.867 | O37: 1092742.396 | P37: 1098206.108 | Q37: 1103697.139 | R37: 1109215.624 | S37: 1114761.702 | T37: 1120335.511 | U37: 1120335.511 | V37: 1120335.511 | W37: 1120335.511 | X37: 1120335.511 | Y37: 1120335.511
C38: Add Funding | F38: =F28 -> 1050000
C39: Add Interest During Construction | F39: =F42 -> 0 | G39: =G42 -> 5250 | H39: 5276.25 | I39: 5302.63125 | J39: 5329.144406 | K39: 5355.790128 | L39: 5382.569079 | M39: 5409.481924 | N39: 5436.529334 | O39: 5463.711981 | P39: 5491.030541 | Q39: 5518.485693 | R39: 5546.078122 | S39: 5573.808512 | T39: 0 | U39: 0 | V39: 0 | W39: 0 | X39: 0 | Y39: 0
C40: Closing Balance | F40: =IF(F34,F37+F38+F39,E40) -> 1050000 | G40: =IF(G34,G37+G38+G39,F40) -> 1055250 | H40: 1060526.25 | I40: 1065828.881 | J40: 1071158.026 | K40: 1076513.816 | L40: 1081896.385 | M40: 1087305.867 | N40: 1092742.396 | O40: 1098206.108 | P40: 1103697.139 | Q40: 1109215.624 | R40: 1114761.702 | S40: 1120335.511 | T40: 1120335.511 | U40: 1120335.511 | V40: 1120335.511 | W40: 1120335.511 | X40: 1120335.511 | Y40: 1120335.511
C42: Interest | E42: =F31 -> 0.005 | F42: =F37*$E$42*F34 -> 0 | G42: =G37*$E$42*G34 -> 5250 | H42: 5276.25 | I42: 5302.63125 | J42: 5329.144406 | K42: 5355.790128 | L42: 5382.569079 | M42: 5409.481924 | N42: 5436.529334 | O42: 5463.711981 | P42: 5491.030541 | Q42: 5518.485693 | R42: 5546.078122 | S42: 5573.808512 | T42: 0 | U42: 0 | V42: 0 | W42: 0 | X42: 0 | Y42: 0
C43: Total Interest During Construction | E43: =SUM(F42:Y42) -> 70335.51097
F63: 0.03
B64: Kwartaal | C64: BoY | D64: Aflossing | E64: EoY | F64: Interest | H64: Jaar | I64: BoY | J64: Aflossing | K64: EoY | L64: Interest | M64: Effective %
B65: 1 | C65: 750000 | D65: =-($C$65/60) -> -12500 | E65: =C65+D65 -> 737500 | F65: =C65*$F$63/4 -> 5625 | H65: 1 | I65: =C65 -> 750000 | J65: =K65-I65 -> -50000 | K65: =I66 -> 700000 | L65: =SUM(OFFSET($F$65,4*(H65-1),0):OFFSET($F$68,4*(H65-1),0)) -> 21937.5 | M65: =L65/I65 -> 0.02925
B66: =B65+1 -> 2 | C66: =E65 -> 737500 | D66: =-($C$65/60) -> -12500 | E66: =C66+D66 -> 725000 | F66: =C66*$F$63/4 -> 5531.25 | H66: =H65+1 -> 2 | I66: =OFFSET($C$65,4*(H66-1),0) -> 700000 | J66: =K66-I66 -> -50000 | K66: =I67 -> 650000 | L66: =SUM(OFFSET($F$65,4*(H66-1),0):OFFSET($F$68,4*(H66-1),0)) -> 20437.5 | M66: =L66/I66 -> 0.02919642857
B67: =B66+1 -> 3 | C67: =E66 -> 725000 | D67: =-($C$65/60) -> -12500 | E67: =C67+D67 -> 712500 | F67: 5437.5 | H67: =H66+1 -> 3 | I67: =OFFSET($C$65,4*(H67-1),0) -> 650000 | J67: -50000 | K67: 600000 | L67: =SUM(OFFSET($F$65,4*(H67-1),0):OFFSET($F$68,4*(H67-1),0)) -> 18937.5 | M67: 0.02913461538
B68: 4 | C68: 712500 | D68: -12500 | E68: 700000 | F68: 5343.75 | H68: 4 | I68: 600000 | J68: -50000 | K68: 550000 | L68: =SUM(OFFSET($F$65,4*(H68-1),0):OFFSET($F$68,4*(H68-1),0)) -> 17437.5 | M68: 0.0290625
B69: 5 | C69: 700000 | D69: -12500 | E69: 687500 | F69: 5250 | H69: 5 | I69: 550000 | J69: -50000 | K69: 500000 | L69: =SUM(OFFSET($F$65,4*(H69-1),0):OFFSET($F$68,4*(H69-1),0)) -> 15937.5 | M69: 0.02897727273
B70: 6 | C70: 687500 | D70: -12500 | E70: 675000 | F70: 5156.25 | H70: 6 | I70: 500000 | J70: -50000 | K70: 450000 | L70: =SUM(OFFSET($F$65,4*(H70-1),0):OFFSET($F$68,4*(H70-1),0)) -> 14437.5 | M70: 0.028875
B71: 7 | C71: 675000 | D71: -12500 | E71: 662500 | F71: 5062.5 | H71: 7 | I71: 450000 | J71: -50000 | K71: 400000 | L71: =SUM(OFFSET($F$65,4*(H71-1),0):OFFSET($F$68,4*(H71-1),0)) -> 12937.5 | M71: 0.02875
B72: 8 | C72: 662500 | D72: -12500 | E72: 650000 | F72: 4968.75 | H72: 8 | I72: 400000 | J72: -50000 | K72: 350000 | L72: =SUM(OFFSET($F$65,4*(H72-1),0):OFFSET($F$68,4*(H72-1),0)) -> 11437.5 | M72: 0.02859375
B73: 9 | C73: 650000 | D73: -12500 | E73: 637500 | F73: 4875 | H73: 9 | I73: 350000 | J73: -50000 | K73: 300000 | L73: =SUM(OFFSET($F$65,4*(H73-1),0):OFFSET($F$68,4*(H73-1),0)) -> 9937.5 | M73: 0.02839285714
B74: 10 | C74: 637500 | D74: -12500 | E74: 625000 | F74: 4781.25 | H74: 10 | I74: 300000 | J74: -50000 | K74: 250000 | L74: =SUM(OFFSET($F$65,4*(H74-1),0):OFFSET($F$68,4*(H74-1),0)) -> 8437.5 | M74: 0.028125
B75: 11 | C75: 625000 | D75: -12500 | E75: 612500 | F75: 4687.5 | H75: 11 | I75: 250000 | J75: -50000 | K75: 200000 | L75: =SUM(OFFSET($F$65,4*(H75-1),0):OFFSET($F$68,4*(H75-1),0)) -> 6937.5 | M75: 0.02775
B76: 12 | C76: 612500 | D76: -12500 | E76: 600000 | F76: 4593.75 | H76: 12 | I76: 200000 | J76: -50000 | K76: 150000 | L76: =SUM(OFFSET($F$65,4*(H76-1),0):OFFSET($F$68,4*(H76-1),0)) -> 5437.5 | M76: 0.0271875
B77: 13 | C77: 600000 | D77: -12500 | E77: 587500 | F77: 4500 | H77: 13 | I77: 150000 | J77: -50000 | K77: 100000 | L77: =SUM(OFFSET($F$65,4*(H77-1),0):OFFSET($F$68,4*(H77-1),0)) -> 3937.5 | M77: 0.02625
B78: 14 | C78: 587500 | D78: -12500 | E78: 575000 | F78: 4406.25 | H78: 14 | I78: 100000 | J78: -50000 | K78: 50000 | L78: =SUM(OFFSET($F$65,4*(H78-1),0):OFFSET($F$68,4*(H78-1),0)) -> 2437.5 | M78: 0.024375
B79: 15 | C79: 575000 | D79: -12500 | E79: 562500 | F79: 4312.5 | H79: 15 | I79: 50000 | J79: -50000 | K79: 0 | L79: =SUM(OFFSET($F$65,4*(H79-1),0):OFFSET($F$68,4*(H79-1),0)) -> 937.5 | M79: 0.01875
B80: 16 | C80: 562500 | D80: -12500 | E80: 550000 | F80: 4218.75 | L80: =SUM(L65:L79) -> 171562.5 | M80: =AVERAGE(M65:M79) -> 0.02751132826
B81: 17 | C81: 550000 | D81: -12500 | E81: 537500 | F81: 4125
B82: 18 | C82: 537500 | D82: -12500 | E82: 525000 | F82: 4031.25
B83: 19 | C83: 525000 | D83: -12500 | E83: 512500 | F83: 3937.5
B84: 20 | C84: 512500 | D84: -12500 | E84: 500000 | F84: 3843.75
B85: 21 | C85: 500000 | D85: -12500 | E85: 487500 | F85: 3750
B86: 22 | C86: 487500 | D86: -12500 | E86: 475000 | F86: 3656.25
B87: 23 | C87: 475000 | D87: -12500 | E87: 462500 | F87: 3562.5
B88: 24 | C88: 462500 | D88: -12500 | E88: 450000 | F88: 3468.75
B89: 25 | C89: 450000 | D89: -12500 | E89: 437500 | F89: 3375
B90: 26 | C90: 437500 | D90: -12500 | E90: 425000 | F90: 3281.25
B91: 27 | C91: 425000 | D91: -12500 | E91: 412500 | F91: 3187.5
B92: 28 | C92: 412500 | D92: -12500 | E92: 400000 | F92: 3093.75
B93: 29 | C93: 400000 | D93: -12500 | E93: 387500 | F93: 3000
B94: 30 | C94: 387500 | D94: -12500 | E94: 375000 | F94: 2906.25
B95: 31 | C95: 375000 | D95: -12500 | E95: 362500 | F95: 2812.5
B96: 32 | C96: 362500 | D96: -12500 | E96: 350000 | F96: 2718.75
B97: 33 | C97: 350000 | D97: -12500 | E97: 337500 | F97: 2625
B98: 34 | C98: 337500 | D98: -12500 | E98: 325000 | F98: 2531.25
B99: 35 | C99: 325000 | D99: -12500 | E99: 312500 | F99: 2437.5
B100: 36 | C100: 312500 | D100: -12500 | E100: 300000 | F100: 2343.75
B101: 37 | C101: 300000 | D101: -12500 | E101: 287500 | F101: 2250
B102: 38 | C102: 287500 | D102: -12500 | E102: 275000 | F102: 2156.25
B103: 39 | C103: 275000 | D103: -12500 | E103: 262500 | F103: 2062.5
B104: 40 | C104: 262500 | D104: -12500 | E104: 250000 | F104: 1968.75
B105: 41 | C105: 250000 | D105: -12500 | E105: 237500 | F105: 1875
B106: 42 | C106: 237500 | D106: -12500 | E106: 225000 | F106: 1781.25
B107: 43 | C107: 225000 | D107: -12500 | E107: 212500 | F107: 1687.5
B108: 44 | C108: 212500 | D108: -12500 | E108: 200000 | F108: 1593.75
B109: 45 | C109: 200000 | D109: -12500 | E109: 187500 | F109: 1500
B110: 46 | C110: 187500 | D110: -12500 | E110: 175000 | F110: 1406.25
B111: 47 | C111: 175000 | D111: -12500 | E111: 162500 | F111: 1312.5
B112: 48 | C112: 162500 | D112: -12500 | E112: 150000 | F112: 1218.75
B113: 49 | C113: 150000 | D113: -12500 | E113: 137500 | F113: 1125
B114: =B113+1 -> 50 | C114: 137500 | D114: -12500 | E114: 125000 | F114: 1031.25
B115: 51 | C115: 125000 | D115: -12500 | E115: 112500 | F115: 937.5
B116: 52 | C116: 112500 | D116: -12500 | E116: 100000 | F116: 843.75
B117: 53 | C117: 100000 | D117: -12500 | E117: 87500 | F117: 750
B118: =B117+1 -> 54 | C118: 87500 | D118: -12500 | E118: 75000 | F118: 656.25
B119: 55 | C119: 75000 | D119: -12500 | E119: 62500 | F119: 562.5
B120: 56 | C120: 62500 | D120: -12500 | E120: 50000 | F120: 468.75
B121: =B120+1 -> 57 | C121: 50000 | D121: -12500 | E121: 37500 | F121: 375
B122: 58 | C122: 37500 | D122: -12500 | E122: 25000 | F122: 281.25
B123: =B122+1 -> 59 | C123: 25000 | D123: -12500 | E123: 12500 | F123: 187.5
B124: 60 | C124: 12500 | D124: -12500 | E124: 0 | F124: 93.75

Sheet Kosten & Scenario's
K1: Currently on minimum
C3: I | E3: Waarde assets | G3: [EUR] | I3: Scenario analyse De Burg op investeringsruimte capex I | R3: 3
C4: a | E4: Asfaltcollector | F4: Kodi | G4: 432000 | K4: koude | L4: inkoop elektra
E5: capex II | G5: =SUM(G4) -> 432000 | I5: 1 | J5: minimaal | K5: 51840 | L5: 254038 | N5: =L5/K5 -> 4.900424383
C6: b | E6: De Burg + TR | F6: Kodi | G6: 1800000 | I6: 2 | J6: nominaal | K6: 57600 | L6: 282264 | N6: =L6/K6 -> 4.900416667
C7: c | E7: Stammis | F7: Kodi | G7: 70000 | I7: 3 | J7: maximaal | K7: 72000 | L7: 352830 | N7: =L7/K7 -> 4.900416667
K9: =INDEX(K5:K7,$R$3) -> 72000 | L9: =INDEX(L5:L7,$R$3) -> 352830
C10: d
C11: d | H11: E | J11: beschikbaar gesteld vermogen koude | K11: 5300 | N11: 4.900416667
E12: totaal capex I | G12: =SUM(G6:G11) -> 1870000
E13: total capex | G13: =G5+G12 -> 2302000
I14: Scenario analyse De Burg op investeringsruimte capex I
E15: transactiekosten | I15: - | J15: rente aandeelhouderslening | K15: 0.1
D16: 1 | E16: Juridische zaken | F16: West Advocaten | G16: 10379 | I16: - | J16: rente juniorlening | K16: 0.075
D17: 2 | E17: Notaris (begroot) | F17: Van Putten van Apeldoorn | G17: 5000 | H17: E | I17: - | J17: looptijd junior lening | K17: 8
D18: 3 | E18: Juridische zaken | F18: Octo Consilium | G18: 5000 | H18: E
D19: 4 | E19: fee financiering | F19: DuurzaamInvesteren | G19: 21000 | I19: Scenario analyse op DSCR senior loan
D20: 5 | E20: fee financiering | F20: Escoplan | G20: 10500 | I20: - | J20: 10% wanbetaling over een periode van 5 jaar
D21: 6 | E21: fee financiering | G21: 5000 | H21: E | I21: - | J21: electriciteitsprijs veranderingen:
D22: 7 | E22: arrangement, advies, JZ | F22: via ESCO2Service | G22: 45000
D23: 8 | E23: rentekosten ESCO2Service | F23: 7% p.a. (107k-45k) | G23: 4340 | I23: De gevoeligheid van de Burg case voor ontwikkelingen op de elektriciteitsmarkt is laag. Bij een stijgende elektriciteitsprijs stijgt de kostprijs voor de geleverde koude. Bij dalende prijzen daalt de kostprijs. De ontwikkeling van de energieprijzen werkt door in de CBS index, waardoor de inkomsten mee bewegen met de kostprijs ontwikkeling. In deze scenario analyse is alleen een stijgende kostprijs doorgerekend. De CBS index is op 1,5% per jaar blijven staan, gelijk aan de base case. Dit is een conservatieve (stress) aanname. In de praktijk bewegen de inkomsten mee met de ontwikkelingen op de energiemarkt.
D24: 9 | E24: afsluitprovisie | F24: ASN Bank (1%) | G24: 10500 | H24: E
D25: 10 | E25: rentekosten bouwdepot | F25: ASN Bank (0,5%) | G25: 5250 | H25: E
E26: totaal | G26: =SUM(G16:G25) -> 121969
C28: II | E28: Rentevergoeding | F28: [%]
C29: a | E29: Kodi | F29: 0
C30: b | E30: SAUND | F30: 0
C31: c | E31: ASN Bank | F31: 0.034
C33: III | E33: Managementfee | G33: [EUR]
C34: a | E34: ESCO2Service | F34: 0.02 | G34: 45000
C36: IV | E36: Managementvergoeding | F36: [%]
E37: SAUND / KODI | F37: 0.005
C39: V | E39: Beheervergoeding | F39: [%]
E40: SAUND | F40: 0.01
C42: VI | E42: M&V vergoeding | F42: [%]
E43: SAUND | F43: 0.003
C45: VII | E45: Financieringsfee | F45: [%]
E46: Escoplan | F46: 0.01 | G46: 10500
E47: DuurzaamInvesteren | F47: 0.02 | G47: 21000
E48: Overig | G48: N.T.B.
C50: VIII | E50: Aanneemsom installatie | F50: [EUR]
C51: a | E51: Asfaltcollector | G51: 432000
C52: b | E52: De Burg, TR, Stammis | G52: 1870000
C54: IX | E54: Onderhoudskosten | F54: [%]
F55: 0.03
C57: X | E57: Investering deelproject | G57: [EUR]
C60: XI | E60: Ontwikkelfee basis | F60: [%]
F61: 0.01
C63: XII | E63: Ontwikkelfee deelproject | F63: [%]
F64: 0.03
F65: 0.03
